[Event "*** Titled Tuesday Blitz"]
[Site "Chess.com"]
[Date "2021.04.20"]
[Round "9"]
[White "Gerodot71"]
[Black "anon102030"]
[Result "0-1"]
[WhiteElo "2583"]
[BlackElo "2727"]
[TimeControl "180+1"]
[EndTime "11:45:28 PDT"]
[Termination "anon102030 won by resignation"]

1. d4 {[%clk 0:03:00.9]} 1... Nf6 {[%clk 0:02:59]} 2. c4 {[%clk 0:03:01.3]} 2...
e5 {[%clk 0:02:57.9]} 3. dxe5 {[%clk 0:03:01.2]} 3... Ng4 {[%clk 0:02:57.7]} 4.
e3 {[%clk 0:03:00.6]} 4... Nxe5 {[%clk 0:02:57.1]} 5. Nh3 {[%clk 0:03:01.2]}
5... Ng6 {[%clk 0:02:56.1]} 6. Nc3 {[%clk 0:02:52.6]} 6... Nc6 {[%clk
0:02:55.9]} 7. Nd5 {[%clk 0:02:50.8]} 7... d6 {[%clk 0:02:49]} 8. Nhf4 {[%clk
0:02:51.1]} 8... Nce5 {[%clk 0:02:46]} 9. Be2 {[%clk 0:02:48.2]} 9... c6 {[%clk
0:02:44.8]} 10. Nc3 {[%clk 0:02:43.4]} 10... Be7 {[%clk 0:02:34.1]} 11. O-O
{[%clk 0:02:43]} 11... O-O {[%clk 0:02:33.8]} 12. b3 {[%clk 0:02:41.3]} 12...
Bf6 {[%clk 0:02:29.1]} 13. Bb2 {[%clk 0:02:38.9]} 13... Nxf4 {[%clk 0:02:28.7]}
14. exf4 {[%clk 0:02:38.8]} 14... Ng6 {[%clk 0:02:29.1]} 15. g3 {[%clk
0:02:36.9]} 15... Re8 {[%clk 0:02:28.6]} 16. Bf3 {[%clk 0:02:31.6]} 16... Bh3
{[%clk 0:02:24.5]} 17. Re1 {[%clk 0:02:31.4]} 17... Rxe1+ {[%clk 0:02:21.7]} 18.
Qxe1 {[%clk 0:02:32.3]} 18... Qd7 {[%clk 0:02:15.3]} 19. Qd2 {[%clk 0:02:28.4]}
19... Re8 {[%clk 0:02:12.2]} 20. Rd1 {[%clk 0:02:26.5]} 20... Bg4 {[%clk
0:02:00.2]} 21. Qd3 {[%clk 0:01:58.5]} 21... Bxf3 {[%clk 0:01:53.6]} 22. Qxf3
{[%clk 0:01:59.4]} 22... Qf5 {[%clk 0:01:36.5]} 23. Qd3 {[%clk 0:01:34.4]} 23...
Qh5 {[%clk 0:01:26]} 24. Na4 {[%clk 0:01:06.2]} 24... Bxb2 {[%clk 0:01:11.3]}
25. Nxb2 {[%clk 0:01:07.1]} 25... Re6 {[%clk 0:01:06.3]} 26. Qc3 {[%clk
0:00:23.1]} 26... Qg4 {[%clk 0:00:52.1]} 27. Kh1 {[%clk 0:00:11.1]} 27... h5
{[%clk 0:00:51.9]} 28. Re1 {[%clk 0:00:10.9]} 28... Re2 {[%clk 0:00:36.5]} 29.
Rxe2 {[%clk 0:00:06.3]} 29... Qxe2 {[%clk 0:00:37.4]} 30. Kg2 {[%clk 0:00:06.2]}
30... h4 {[%clk 0:00:31]} 31. Nd3 {[%clk 0:00:05.9]} 31... Qe4+ {[%clk
0:00:23.2]} 32. Kh3 {[%clk 0:00:04.5]} 32... hxg3 {[%clk 0:00:18.2]} 33. fxg3
{[%clk 0:00:05.2]} 33... Qe2 {[%clk 0:00:17.3]} 34. Qd4 {[%clk 0:00:03.8]} 34...
Qf1+ {[%clk 0:00:16.3]} 35. Kg4 {[%clk 0:00:04.3]} 35... Qe2+ {[%clk 0:00:14.9]}
36. Kh3 {[%clk 0:00:04.6]} 36... Qe6+ {[%clk 0:00:09.6]} 37. Kg2 {[%clk
0:00:04.2]} 37... b6 {[%clk 0:00:09.4]} 38. Nf2 {[%clk 0:00:04.1]} 38... f5
{[%clk 0:00:08.3]} 39. Qd3 {[%clk 0:00:03.6]} 39... d5 {[%clk 0:00:07.6]} 40.
Qd4 {[%clk 0:00:03.7]} 40... Ne7 {[%clk 0:00:05.7]} 41. Nd3 {[%clk 0:00:03.7]}
41... c5 {[%clk 0:00:04.5]} 42. Qf2 {[%clk 0:00:03.9]} 42... dxc4 {[%clk
0:00:04.1]} 43. bxc4 {[%clk 0:00:04.1]} 43... Qxc4 {[%clk 0:00:04.2]} 44. Ne5
{[%clk 0:00:04.7]} 44... Qe4+ {[%clk 0:00:04.3]} 45. Kh3 {[%clk 0:00:05.1]}
45... Nd5 {[%clk 0:00:03.8]} 46. Qc2 {[%clk 0:00:02.3]} 46... Qxc2 {[%clk
0:00:02.8]} 47. Ng6 {[%clk 0:00:02.8]} 47... Qxa2 {[%clk 0:00:03.1]} 48. Ne7+
{[%clk 0:00:02.8]} 48... Nxe7 {[%clk 0:00:03.5]} 0-1

[Event "*** Titled Tuesday Blitz"]
[Site "Chess.com"]
[Date "2021.04.20"]
[Round "9"]
[White "Bad_left_hook"]
[Black "Sadykov_Ramil"]
[Result "1/2-1/2"]
[WhiteElo "2621"]
[BlackElo "2493"]
[TimeControl "180+1"]
[EndTime "11:45:31 PDT"]
[Termination "Game drawn by stalemate"]

1. Nf3 {[%clk 0:03:00.9]} 1... d5 {[%clk 0:02:58.7]} 2. g3 {[%clk 0:03:00.4]}
2... Nf6 {[%clk 0:02:57.9]} 3. Bg2 {[%clk 0:03:00.8]} 3... b5 {[%clk 0:02:51.7]}
4. O-O {[%clk 0:03:01.7]} 4... Bb7 {[%clk 0:02:50]} 5. d4 {[%clk 0:03:01.2]}
5... e6 {[%clk 0:02:47.3]} 6. Nc3 {[%clk 0:02:59.8]} 6... b4 {[%clk 0:02:30.8]}
7. Nb1 {[%clk 0:02:59.6]} 7... c5 {[%clk 0:02:27.4]} 8. dxc5 {[%clk 0:02:58.8]}
8... Bxc5 {[%clk 0:02:26.1]} 9. c3 {[%clk 0:02:59.3]} 9... a5 {[%clk 0:02:20.3]}
10. Nbd2 {[%clk 0:02:51.3]} 10... O-O {[%clk 0:02:18]} 11. Nb3 {[%clk
0:02:50.6]} 11... Bb6 {[%clk 0:02:08.8]} 12. Bf4 {[%clk 0:02:49.9]} 12... bxc3
{[%clk 0:02:00.2]} 13. bxc3 {[%clk 0:02:49.2]} 13... Nbd7 {[%clk 0:01:42.6]} 14.
Bd6 {[%clk 0:02:41]} 14... Re8 {[%clk 0:01:40.5]} 15. Nfd4 {[%clk 0:02:40.7]}
15... Nb8 {[%clk 0:01:19.6]} 16. Ba3 {[%clk 0:02:34.6]} 16... Na6 {[%clk
0:00:58.8]} 17. Nb5 {[%clk 0:02:27.2]} 17... Bc6 {[%clk 0:00:51.3]} 18. Nd6
{[%clk 0:02:23.9]} 18... Re7 {[%clk 0:00:51]} 19. c4 {[%clk 0:02:19.2]} 19...
Rd7 {[%clk 0:00:46.2]} 20. Rc1 {[%clk 0:02:04.2]} 20... a4 {[%clk 0:00:34.9]}
21. cxd5 {[%clk 0:01:51.9]} 21... Bxd5 {[%clk 0:00:34.9]} 22. e4 {[%clk
0:01:39.4]} 22... Bxe4 {[%clk 0:00:26.8]} 23. Nxe4 {[%clk 0:01:39.2]} 23... Rxd1
{[%clk 0:00:23.2]} 24. Rfxd1 {[%clk 0:01:38.6]} 24... axb3 {[%clk 0:00:15.2]}
25. Rxd8+ {[%clk 0:01:36.7]} 25... Rxd8 {[%clk 0:00:16.1]} 26. axb3 {[%clk
0:01:27.3]} 26... Nd5 {[%clk 0:00:15.7]} 27. Nd6 {[%clk 0:01:18.5]} 27... Nab4
{[%clk 0:00:13.7]} 28. Nb7 {[%clk 0:01:11.8]} 28... Rb8 {[%clk 0:00:12.9]} 29.
Nc5 {[%clk 0:01:06]} 29... Rc8 {[%clk 0:00:10.9]} 30. Na4 {[%clk 0:01:03]} 30...
Rxc1+ {[%clk 0:00:09.3]} 31. Bxc1 {[%clk 0:01:03.9]} 31... Bxf2+ {[%clk
0:00:09.5]} 32. Kxf2 {[%clk 0:01:01.9]} 32... Nd3+ {[%clk 0:00:09.5]} 33. Kf1
{[%clk 0:00:54.8]} 33... Nxc1 {[%clk 0:00:10.4]} 34. Bxd5 {[%clk 0:00:48.6]}
34... exd5 {[%clk 0:00:11.3]} 35. b4 {[%clk 0:00:49]} 35... Kf8 {[%clk
0:00:08.5]} 36. b5 {[%clk 0:00:47.1]} 36... Ke7 {[%clk 0:00:08.4]} 37. Nc5
{[%clk 0:00:42.9]} 37... Kd6 {[%clk 0:00:07.7]} 38. b6 {[%clk 0:00:43.1]} 38...
Na2 {[%clk 0:00:05.7]} 39. b7 {[%clk 0:00:42.7]} 39... Kc7 {[%clk 0:00:06]} 40.
Ke2 {[%clk 0:00:42.8]} 40... Nc3+ {[%clk 0:00:03.4]} 41. Kd3 {[%clk 0:00:42.2]}
41... Ne4 {[%clk 0:00:03.5]} 42. Kd4 {[%clk 0:00:41.6]} 42... Nxc5 {[%clk
0:00:03.1]} 43. Kxc5 {[%clk 0:00:38.3]} 43... Kxb7 {[%clk 0:00:03.3]} 44. Kxd5
{[%clk 0:00:36.6]} 44... Kc7 {[%clk 0:00:03.6]} 45. h4 {[%clk 0:00:36.9]} 45...
h5 {[%clk 0:00:02.9]} 46. Ke5 {[%clk 0:00:35.7]} 46... Kd7 {[%clk 0:00:03.3]}
47. Kf5 {[%clk 0:00:35.7]} 47... Ke7 {[%clk 0:00:03.3]} 48. Kg5 {[%clk
0:00:36.2]} 48... g6 {[%clk 0:00:03.8]} 49. Kh6 {[%clk 0:00:35.4]} 49... Kf6
{[%clk 0:00:03.8]} 50. Kh7 {[%clk 0:00:35.9]} 50... Kf5 {[%clk 0:00:03.9]} 51.
Kg7 {[%clk 0:00:35.5]} 51... f6 {[%clk 0:00:04]} 52. Kh6 {[%clk 0:00:35.3]}
52... Kg4 {[%clk 0:00:02.9]} 53. Kxg6 {[%clk 0:00:35.5]} 53... f5 {[%clk
0:00:02.7]} 54. Kf6 {[%clk 0:00:34.1]} 54... Kxg3 {[%clk 0:00:02.3]} 55. Kxf5
{[%clk 0:00:34.2]} 55... Kxh4 {[%clk 0:00:02.5]} 56. Kf4 {[%clk 0:00:34.5]}
56... Kh3 {[%clk 0:00:03.4]} 57. Kf3 {[%clk 0:00:34.9]} 57... h4 {[%clk
0:00:03.7]} 58. Kf2 {[%clk 0:00:35.3]} 58... Kh2 {[%clk 0:00:04.3]} 59. Kf1
{[%clk 0:00:35.7]} 59... h3 {[%clk 0:00:04.8]} 60. Kf2 {[%clk 0:00:36.2]} 60...
Kh1 {[%clk 0:00:05.2]} 61. Kf1 {[%clk 0:00:37.1]} 61... h2 {[%clk 0:00:06.1]}
62. Kf2 {[%clk 0:00:38]} 1/2-1/2

[Event "*** Titled Tuesday Blitz"]
[Site "Chess.com"]
[Date "2021.04.20"]
[Round "9"]
[White "Blitzking642"]
[Black "Nf3c5"]
[Result "0-1"]
[WhiteElo "2473"]
[BlackElo "2633"]
[TimeControl "180+1"]
[EndTime "11:45:32 PDT"]
[Termination "Nf3c5 won by checkmate"]

1. e4 {[%clk 0:03:00.9]} 1... c6 {[%clk 0:02:59.7]} 2. c4 {[%clk 0:03:00.2]}
2... e5 {[%clk 0:02:56.4]} 3. Nf3 {[%clk 0:02:59.5]} 3... d6 {[%clk 0:02:55.8]}
4. d4 {[%clk 0:02:59.3]} 4... Nd7 {[%clk 0:02:48.2]} 5. Nc3 {[%clk 0:02:58.7]}
5... Ngf6 {[%clk 0:02:47.3]} 6. Be2 {[%clk 0:02:58.6]} 6... Be7 {[%clk
0:02:45.2]} 7. O-O {[%clk 0:02:59]} 7... a6 {[%clk 0:02:45.6]} 8. a4 {[%clk
0:02:55.4]} 8... a5 {[%clk 0:02:44]} 9. Re1 {[%clk 0:02:55]} 9... O-O {[%clk
0:02:43.4]} 10. Bf1 {[%clk 0:02:55.2]} 10... exd4 {[%clk 0:02:39.4]} 11. Nxd4
{[%clk 0:02:54.9]} 11... Nc5 {[%clk 0:02:40]} 12. f3 {[%clk 0:02:51.4]} 12...
Re8 {[%clk 0:02:39.2]} 13. Be3 {[%clk 0:02:47.2]} 13... Bf8 {[%clk 0:02:31.6]}
14. Qd2 {[%clk 0:02:46.6]} 14... Qb6 {[%clk 0:02:15.5]} 15. Ra3 {[%clk
0:02:08.1]} 15... Nfd7 {[%clk 0:02:05.3]} 16. Rb1 {[%clk 0:01:30.2]} 16... Ne5
{[%clk 0:01:54.9]} 17. b4 {[%clk 0:01:12.4]} 17... axb4 {[%clk 0:01:53.9]} 18.
Na2 {[%clk 0:01:13]} 18... Na6 {[%clk 0:00:56.2]} 19. Nxb4 {[%clk 0:01:01.9]}
19... Nxb4 {[%clk 0:00:54.2]} 20. Rxb4 {[%clk 0:00:59.8]} 20... Qa5 {[%clk
0:00:53.5]} 21. Nb3 {[%clk 0:00:42.3]} 21... Qd8 {[%clk 0:00:46.7]} 22. Bb6
{[%clk 0:00:37.6]} 22... Qf6 {[%clk 0:00:45.2]} 23. Ra1 {[%clk 0:00:24.7]} 23...
Qg6 {[%clk 0:00:36.7]} 24. Kh1 {[%clk 0:00:23.9]} 24... d5 {[%clk 0:00:36.3]}
25. c5 {[%clk 0:00:22.3]} 25... Be6 {[%clk 0:00:24.8]} 26. Nd4 {[%clk
0:00:21.2]} 26... Nd7 {[%clk 0:00:22.7]} 27. Nxe6 {[%clk 0:00:20.4]} 27... fxe6
{[%clk 0:00:23.6]} 28. Rc1 {[%clk 0:00:17.4]} 28... Kh8 {[%clk 0:00:16.9]} 29.
Bd3 {[%clk 0:00:17.4]} 29... Qh6 {[%clk 0:00:16.2]} 30. Qxh6 {[%clk 0:00:16.5]}
30... gxh6 {[%clk 0:00:17.1]} 31. Kg1 {[%clk 0:00:12.5]} 31... Kg8 {[%clk
0:00:17]} 32. Kf1 {[%clk 0:00:12.5]} 32... Rec8 {[%clk 0:00:17.3]} 33. Ke2
{[%clk 0:00:08.2]} 33... Bg7 {[%clk 0:00:17.2]} 34. exd5 {[%clk 0:00:06.4]}
34... exd5 {[%clk 0:00:17.3]} 35. Bf5 {[%clk 0:00:06.5]} 35... Re8+ {[%clk
0:00:17.7]} 36. Kd2 {[%clk 0:00:06.8]} 36... Ne5 {[%clk 0:00:17.8]} 37. Bd3
{[%clk 0:00:02.1]} 37... h5 {[%clk 0:00:16.5]} 38. a5 {[%clk 0:00:02.3]} 38...
Bh6+ {[%clk 0:00:16.3]} 39. f4 {[%clk 0:00:03]} 39... Nc4+ {[%clk 0:00:12.8]}
40. Bxc4 {[%clk 0:00:02.8]} 40... Bxf4+ {[%clk 0:00:13.1]} 41. Kc2 {[%clk
0:00:02.5]} 41... Bxc1 {[%clk 0:00:14]} 42. Bd3 {[%clk 0:00:02.9]} 42... Bh6
{[%clk 0:00:13]} 43. Rh4 {[%clk 0:00:03.3]} 43... Re5 {[%clk 0:00:12.7]} 44. g4
{[%clk 0:00:01.9]} 44... Rf8 {[%clk 0:00:11.1]} 45. gxh5 {[%clk 0:00:02.2]}
45... Rf2+ {[%clk 0:00:10.7]} 46. Kc3 {[%clk 0:00:02.8]} 46... Rf3 {[%clk
0:00:10.8]} 47. Rg4+ {[%clk 0:00:02.9]} 47... Kf7 {[%clk 0:00:10.2]} 48. Kd4
{[%clk 0:00:02.9]} 48... Bg7 {[%clk 0:00:08.8]} 49. Bxh7 {[%clk 0:00:02.8]}
49... Re4# {[%clk 0:00:07.8]} 0-1

[Event "*** Titled Tuesday Blitz"]
[Site "Chess.com"]
[Date "2021.04.20"]
[Round "9"]
[White "starplatinum2030"]
[Black "MaevskiyNikolay"]
[Result "0-1"]
[WhiteElo "2293"]
[BlackElo "2475"]
[TimeControl "180+1"]
[EndTime "11:45:33 PDT"]
[Termination "MaevskiyNikolay won by resignation"]

1. Nf3 {[%clk 0:03:00.9]} 1... d5 {[%clk 0:02:49.6]} 2. b3 {[%clk 0:02:59.5]}
2... Bg4 {[%clk 0:02:48.1]} 3. Ne5 {[%clk 0:02:59.1]} 3... Bh5 {[%clk
0:02:44.8]} 4. g4 {[%clk 0:02:56.8]} 4... Bg6 {[%clk 0:02:44.4]} 5. Nxg6 {[%clk
0:02:56.7]} 5... hxg6 {[%clk 0:02:44.1]} 6. Bg2 {[%clk 0:02:57.2]} 6... c6
{[%clk 0:02:44.5]} 7. Bb2 {[%clk 0:02:57.2]} 7... e6 {[%clk 0:02:41.2]} 8. d3
{[%clk 0:02:55.1]} 8... a5 {[%clk 0:02:40.6]} 9. a4 {[%clk 0:02:54.4]} 9... Nf6
{[%clk 0:02:39.1]} 10. h3 {[%clk 0:02:53.4]} 10... Nbd7 {[%clk 0:02:37.4]} 11.
Nd2 {[%clk 0:02:53.4]} 11... Qc7 {[%clk 0:02:33.2]} 12. e4 {[%clk 0:02:46.9]}
12... Bb4 {[%clk 0:02:25]} 13. Qe2 {[%clk 0:02:43]} 13... g5 {[%clk 0:02:15.1]}
14. e5 {[%clk 0:02:36.1]} 14... Ng8 {[%clk 0:02:13.8]} 15. d4 {[%clk 0:02:27.1]}
15... Bxd2+ {[%clk 0:02:02.2]} 16. Qxd2 {[%clk 0:02:25.2]} 16... f6 {[%clk
0:01:57]} 17. O-O-O {[%clk 0:02:21.5]} 17... O-O-O {[%clk 0:01:56.2]} 18. Rhe1
{[%clk 0:02:17]} 18... Re8 {[%clk 0:01:56.4]} 19. Kb1 {[%clk 0:02:07.3]} 19...
Nh6 {[%clk 0:01:52.9]} 20. c4 {[%clk 0:02:01.6]} 20... Kb8 {[%clk 0:01:49.3]}
21. c5 {[%clk 0:02:01.7]} 21... fxe5 {[%clk 0:01:38.9]} 22. dxe5 {[%clk
0:01:53.6]} 22... Nf7 {[%clk 0:01:39]} 23. Qd4 {[%clk 0:01:36.9]} 23... Ref8
{[%clk 0:01:27.6]} 24. Rc1 {[%clk 0:01:32.6]} 24... Nfxe5 {[%clk 0:01:17.8]} 25.
Rxe5 {[%clk 0:01:30.8]} 25... Nxe5 {[%clk 0:01:18]} 26. Qxe5 {[%clk 0:01:29.2]}
26... Rxf2 {[%clk 0:00:46.3]} 27. Rc2 {[%clk 0:01:11.9]} 27... Rxc2 {[%clk
0:00:42.1]} 28. Kxc2 {[%clk 0:01:10.6]} 28... Rf8 {[%clk 0:00:40.7]} 29. Qxc7+
{[%clk 0:00:53.9]} 29... Kxc7 {[%clk 0:00:40.7]} 30. Be5+ {[%clk 0:00:54.5]}
30... Kd7 {[%clk 0:00:40.3]} 31. Bg3 {[%clk 0:00:55]} 31... e5 {[%clk
0:00:38.3]} 32. Kd3 {[%clk 0:00:55]} 32... Ke6 {[%clk 0:00:37.2]} 33. Ke3 {[%clk
0:00:54]} 33... b6 {[%clk 0:00:35.6]} 34. cxb6 {[%clk 0:00:47.2]} 34... Rb8
{[%clk 0:00:35.7]} 35. Kd2 {[%clk 0:00:40.9]} 35... Rxb6 {[%clk 0:00:35.4]} 36.
Kc2 {[%clk 0:00:39.9]} 36... c5 {[%clk 0:00:27.3]} 37. Be1 {[%clk 0:00:36.6]}
37... Ra6 {[%clk 0:00:25.7]} 38. Bf1 {[%clk 0:00:36.1]} 38... Ra7 {[%clk
0:00:25.1]} 39. Bf2 {[%clk 0:00:30.8]} 39... Kd6 {[%clk 0:00:22.1]} 40. Be3
{[%clk 0:00:22.8]} 40... Rf7 {[%clk 0:00:19.6]} 41. Be2 {[%clk 0:00:17]} 41...
d4 {[%clk 0:00:18]} 42. Bxg5 {[%clk 0:00:17]} 42... Rf2 {[%clk 0:00:18.2]} 43.
Kd2 {[%clk 0:00:17.2]} 43... e4 {[%clk 0:00:18.5]} 44. Ke1 {[%clk 0:00:17.4]}
44... Rf7 {[%clk 0:00:17.1]} 45. Bh4 {[%clk 0:00:17.2]} 45... d3 {[%clk
0:00:16.5]} 46. Bg3+ {[%clk 0:00:17]} 46... Kd5 {[%clk 0:00:16.7]} 47. Bf1
{[%clk 0:00:17.1]} 47... Rb7 {[%clk 0:00:16.2]} 48. Bf4 {[%clk 0:00:10.2]} 48...
Rxb3 {[%clk 0:00:16]} 49. Kd2 {[%clk 0:00:10.5]} 49... c4 {[%clk 0:00:13.4]} 50.
Bg2 {[%clk 0:00:09.1]} 50... Rb2+ {[%clk 0:00:12.5]} 0-1

[Event "*** Titled Tuesday Blitz"]
[Site "Chess.com"]
[Date "2021.04.20"]
[Round "9"]
[White "GAusal"]
[Black "NovikovaGalina"]
[Result "0-1"]
[WhiteElo "2031"]
[BlackElo "2308"]
[TimeControl "180+1"]
[EndTime "11:45:35 PDT"]
[Termination "NovikovaGalina won by checkmate"]

1. d4 {[%clk 0:03:00.9]} 1... d5 {[%clk 0:02:59.8]} 2. Bf4 {[%clk 0:02:58.8]}
2... Nc6 {[%clk 0:03:00.2]} 3. e3 {[%clk 0:02:57.8]} 3... Bf5 {[%clk 0:03:00.7]}
4. c3 {[%clk 0:02:57.3]} 4... e6 {[%clk 0:03:01.3]} 5. Qb3 {[%clk 0:02:56.2]}
5... Rb8 {[%clk 0:03:00.3]} 6. Na3 {[%clk 0:02:52.6]} 6... a6 {[%clk 0:02:55.6]}
7. Qa4 {[%clk 0:02:45.6]} 7... Bd6 {[%clk 0:02:54]} 8. Bxa6 {[%clk 0:02:38.7]}
8... Ne7 {[%clk 0:02:38.7]} 9. Bxd6 {[%clk 0:02:32.9]} 9... Qxd6 {[%clk
0:02:39.6]} 10. Be2 {[%clk 0:02:31.5]} 10... O-O {[%clk 0:02:38]} 11. Nf3 {[%clk
0:02:30.6]} 11... e5 {[%clk 0:02:37.4]} 12. Nb5 {[%clk 0:02:27.1]} 12... Qg6
{[%clk 0:02:36.8]} 13. dxe5 {[%clk 0:02:24.4]} 13... Qxg2 {[%clk 0:02:32.2]} 14.
Rg1 {[%clk 0:02:23.4]} 14... Qh3 {[%clk 0:02:31.8]} 15. O-O-O {[%clk 0:02:21.8]}
15... Be4 {[%clk 0:02:29.1]} 16. Ng5 {[%clk 0:02:19.2]} 16... Qf5 {[%clk
0:02:25.6]} 17. Nxe4 {[%clk 0:02:18.4]} 17... dxe4 {[%clk 0:02:26.5]} 18. Bg4
{[%clk 0:02:15.1]} 18... Qxf2 {[%clk 0:02:23.1]} 19. Qxe4 {[%clk 0:02:11.4]}
19... Ng6 {[%clk 0:02:23.3]} 20. Bf5 {[%clk 0:02:09.5]} 20... Ncxe5 {[%clk
0:02:20.2]} 21. Nd4 {[%clk 0:02:02.2]} 21... c5 {[%clk 0:01:57.1]} 22. Nc2
{[%clk 0:01:51.6]} 22... c4 {[%clk 0:01:53.4]} 23. Rdf1 {[%clk 0:01:28.4]} 23...
Qe2 {[%clk 0:01:31.5]} 24. h4 {[%clk 0:01:19.6]} 24... Ra8 {[%clk 0:01:21.6]}
25. a3 {[%clk 0:01:17.8]} 25... Nd3+ {[%clk 0:01:16]} 26. Kb1 {[%clk 0:01:15.9]}
26... b5 {[%clk 0:01:08.6]} 27. h5 {[%clk 0:01:09.2]} 27... Rfe8 {[%clk
0:01:08.9]} 28. Qc6 {[%clk 0:00:58.8]} 28... Nge5 {[%clk 0:01:02.5]} 29. Qg2
{[%clk 0:00:44.7]} 29... Qxg2 {[%clk 0:01:00.7]} 30. Rxg2 {[%clk 0:00:44.6]}
30... g6 {[%clk 0:00:57.9]} 31. hxg6 {[%clk 0:00:40.6]} 31... hxg6 {[%clk
0:00:58.8]} 32. Be4 {[%clk 0:00:37.2]} 32... Rad8 {[%clk 0:00:58]} 33. Nd4
{[%clk 0:00:35.1]} 33... Rb8 {[%clk 0:00:38]} 34. Bc6 {[%clk 0:00:33.6]} 34...
Rec8 {[%clk 0:00:31.3]} 35. Bxb5 {[%clk 0:00:32]} 35... Rc5 {[%clk 0:00:31.8]}
36. a4 {[%clk 0:00:30.9]} 36... Kg7 {[%clk 0:00:30.8]} 37. Rg5 {[%clk
0:00:29.8]} 37... Nxb2 {[%clk 0:00:28]} 38. Kxb2 {[%clk 0:00:26.7]} 38... Nd3+
{[%clk 0:00:28.2]} 39. Kc2 {[%clk 0:00:26.3]} 39... Rxg5 {[%clk 0:00:29.1]} 40.
Bxc4 {[%clk 0:00:22.2]} 40... Ne5 {[%clk 0:00:28]} 41. Bb5 {[%clk 0:00:20.8]}
41... Rg2+ {[%clk 0:00:27.8]} 42. Kb3 {[%clk 0:00:20]} 42... f5 {[%clk
0:00:24.1]} 43. c4 {[%clk 0:00:17.4]} 43... Nd3 {[%clk 0:00:23.5]} 44. a5 {[%clk
0:00:16.1]} 44... Nc5+ {[%clk 0:00:23.6]} 45. Kb4 {[%clk 0:00:15.7]} 45... Ne4
{[%clk 0:00:24.5]} 46. a6 {[%clk 0:00:14.9]} 46... Rb2+ {[%clk 0:00:25.2]} 47.
Ka5 {[%clk 0:00:14.8]} 47... Ra2+ {[%clk 0:00:24.3]} 48. Kb4 {[%clk 0:00:14.6]}
48... Rxa6 {[%clk 0:00:24.3]} 49. Nxf5+ {[%clk 0:00:09.5]} 49... gxf5 {[%clk
0:00:23.2]} 50. Rxf5 {[%clk 0:00:10.1]} 50... Ra1 {[%clk 0:00:21.8]} 51. Re5
{[%clk 0:00:08.9]} 51... Rb1+ {[%clk 0:00:21.5]} 52. Ka5 {[%clk 0:00:08.9]}
52... Nc3 {[%clk 0:00:21.8]} 53. Re7+ {[%clk 0:00:07.2]} 53... Kf6 {[%clk
0:00:21.4]} 54. Rc7 {[%clk 0:00:05]} 54... Nxb5 {[%clk 0:00:21.3]} 55. cxb5
{[%clk 0:00:04.9]} 55... R1xb5+ {[%clk 0:00:22.2]} 56. Ka6 {[%clk 0:00:04.3]}
56... Rb1 {[%clk 0:00:23.1]} 57. Rc6+ {[%clk 0:00:03.2]} 57... Ke5 {[%clk
0:00:23.7]} 58. Rc5+ {[%clk 0:00:03.6]} 58... Ke4 {[%clk 0:00:24.3]} 59. Ra5
{[%clk 0:00:04.5]} 59... Ra8# {[%clk 0:00:23.7]} 0-1

[Event "*** Titled Tuesday Blitz"]
[Site "Chess.com"]
[Date "2021.04.20"]
[Round "9"]
[White "MerryPoppies"]
[Black "FeketeBarika"]
[Result "1/2-1/2"]
[WhiteElo "2133"]
[BlackElo "2242"]
[TimeControl "180+1"]
[EndTime "11:45:38 PDT"]
[Termination "Game drawn - insufficient material"]

1. d4 {[%clk 0:02:45.7]} 1... Nf6 {[%clk 0:02:58.1]} 2. c4 {[%clk 0:02:39.4]}
2... e6 {[%clk 0:02:55.8]} 3. Nc3 {[%clk 0:02:38.7]} 3... d5 {[%clk 0:02:45.7]}
4. cxd5 {[%clk 0:02:27.7]} 4... exd5 {[%clk 0:02:41.4]} 5. Nf3 {[%clk
0:02:27.6]} 5... Bd6 {[%clk 0:02:34]} 6. Bg5 {[%clk 0:02:27.2]} 6... c6 {[%clk
0:02:30.4]} 7. e3 {[%clk 0:02:27.2]} 7... Bf5 {[%clk 0:02:27.2]} 8. Bd3 {[%clk
0:02:27.1]} 8... Bxd3 {[%clk 0:02:26.1]} 9. Qxd3 {[%clk 0:02:27.1]} 9... O-O
{[%clk 0:02:26.6]} 10. O-O {[%clk 0:02:26.1]} 10... Nbd7 {[%clk 0:02:26]} 11.
Rac1 {[%clk 0:02:25.6]} 11... h6 {[%clk 0:02:23.2]} 12. Bh4 {[%clk 0:02:25.6]}
12... Re8 {[%clk 0:02:21.1]} 13. Rfe1 {[%clk 0:02:21]} 13... Qa5 {[%clk
0:01:56.1]} 14. e4 {[%clk 0:01:21.9]} 14... dxe4 {[%clk 0:01:51.6]} 15. Nxe4
{[%clk 0:01:21.7]} 15... Nxe4 {[%clk 0:01:51.5]} 16. Rxe4 {[%clk 0:01:21.7]}
16... Rxe4 {[%clk 0:01:34.2]} 17. Qxe4 {[%clk 0:01:21.7]} 17... Qxa2 {[%clk
0:01:33.1]} 18. Qc2 {[%clk 0:00:18.3]} 18... Re8 {[%clk 0:01:22.1]} 19. Bg3
{[%clk 0:00:16.9]} 19... Bxg3 {[%clk 0:01:18.9]} 20. hxg3 {[%clk 0:00:17.8]}
20... Nf6 {[%clk 0:01:16.1]} 21. Re1 {[%clk 0:00:15.2]} 21... Rxe1+ {[%clk
0:01:14.3]} 22. Nxe1 {[%clk 0:00:16.1]} 22... Qd5 {[%clk 0:01:13.7]} 23. Nf3
{[%clk 0:00:15.4]} 23... g6 {[%clk 0:01:11.9]} 24. Qe2 {[%clk 0:00:14.5]} 24...
Kg7 {[%clk 0:01:12.1]} 25. Qe7 {[%clk 0:00:14.3]} 25... Nd7 {[%clk 0:01:06.4]}
26. Ne5 {[%clk 0:00:13]} 26... Nxe5 {[%clk 0:01:05.9]} 27. dxe5 {[%clk
0:00:13.3]} 27... Qe6 {[%clk 0:01:06]} 28. Qxb7 {[%clk 0:00:13]} 28... Qxe5
{[%clk 0:01:05.8]} 29. b4 {[%clk 0:00:10.8]} 29... Qd5 {[%clk 0:01:01.3]} 30.
Qxa7 {[%clk 0:00:10.4]} 30... Qd1+ {[%clk 0:01:00.7]} 31. Kh2 {[%clk 0:00:10.4]}
31... Qd2 {[%clk 0:00:56.8]} 32. Qc5 {[%clk 0:00:10.1]} 32... Qd7 {[%clk
0:00:53.3]} 33. Qe5+ {[%clk 0:00:10]} 33... Kh7 {[%clk 0:00:52.9]} 34. Qc5
{[%clk 0:00:09.8]} 34... Qe6 {[%clk 0:00:52.2]} 35. b5 {[%clk 0:00:09]} 35...
cxb5 {[%clk 0:00:51.1]} 36. Qxb5 {[%clk 0:00:09.3]} 36... Qf6 {[%clk 0:00:47.2]}
37. Qe2 {[%clk 0:00:08.2]} 37... Qd4 {[%clk 0:00:46.1]} 38. Qf3 {[%clk
0:00:07.9]} 38... Kg7 {[%clk 0:00:45.2]} 39. Kh3 {[%clk 0:00:07.9]} 39... g5
{[%clk 0:00:43.7]} 40. g4 {[%clk 0:00:07.3]} 40... h5 {[%clk 0:00:39.3]} 41. Qf5
{[%clk 0:00:04.4]} 41... f6 {[%clk 0:00:33.1]} 42. g3 {[%clk 0:00:03]} 42...
hxg4+ {[%clk 0:00:32.2]} 43. Qxg4 {[%clk 0:00:03]} 43... Qxf2 {[%clk 0:00:32]}
44. Qd7+ {[%clk 0:00:03.1]} 44... Kh6 {[%clk 0:00:32]} 45. Qf7 {[%clk
0:00:02.9]} 45... Qf1+ {[%clk 0:00:28.1]} 46. Kh2 {[%clk 0:00:01.8]} 46... Qe2+
{[%clk 0:00:20.7]} 47. Kh3 {[%clk 0:00:01.8]} 47... Qe4 {[%clk 0:00:16.5]} 48.
Qf8+ {[%clk 0:00:01.8]} 48... Kg6 {[%clk 0:00:16]} 49. Qg8+ {[%clk 0:00:02.2]}
49... Kf5 {[%clk 0:00:16.2]} 50. Qh7+ {[%clk 0:00:02.4]} 50... Ke5 {[%clk
0:00:16.5]} 51. Qe7+ {[%clk 0:00:02.5]} 51... Kd4 {[%clk 0:00:16.6]} 52. Qd6+
{[%clk 0:00:02.7]} 52... Ke3 {[%clk 0:00:16.3]} 53. Qxf6 {[%clk 0:00:02.9]}
53... Qh1+ {[%clk 0:00:16.1]} 54. Kg4 {[%clk 0:00:03.2]} 54... Qd1+ {[%clk
0:00:15]} 55. Kxg5 {[%clk 0:00:03.4]} 55... Qd5+ {[%clk 0:00:15.6]} 56. Kg6
{[%clk 0:00:02.5]} 56... Qg8+ {[%clk 0:00:15.8]} 57. Kf5 {[%clk 0:00:02.6]}
57... Qxg3 {[%clk 0:00:15.7]} 58. Qe5+ {[%clk 0:00:02.3]} 58... Qxe5+ {[%clk
0:00:15.4]} 59. Kxe5 {[%clk 0:00:03.2]} 1/2-1/2